[Event "*** Titled Tuesday Blitz"]
[Site "Chess.com"]
[Date "2020.05.12"]
[Round "4"]
[White "Grandmaster2B"]
[Black "MusicCityMaster"]
[Result "1-0"]
[WhiteElo "2490"]
[BlackElo "2311"]
[TimeControl "180+1"]
[EndTime "10:38:56 PDT"]
[Termination "Grandmaster2B won by checkmate"]

1. e4 {[%clk 0:03:00.9]} 1... c5 {[%clk 0:02:59.4]} 2. Nf3 {[%clk 0:02:58.3]}
2... d6 {[%clk 0:02:59.6]} 3. d4 {[%clk 0:02:58.4]} 3... cxd4 {[%clk 0:02:59.3]}
4. Nxd4 {[%clk 0:02:59.3]} 4... Nf6 {[%clk 0:02:58.8]} 5. Nc3 {[%clk 0:02:59.5]}
5... a6 {[%clk 0:02:59.4]} 6. f3 {[%clk 0:02:58.8]} 6... e5 {[%clk 0:02:59.2]}
7. Nb3 {[%clk 0:02:58.7]} 7... Be6 {[%clk 0:02:59.8]} 8. Be3 {[%clk 0:02:59.2]}
8... Be7 {[%clk 0:02:58.7]} 9. Qd2 {[%clk 0:02:59.5]} 9... Nbd7 {[%clk
0:02:58.7]} 10. O-O-O {[%clk 0:02:59.8]} 10... b5 {[%clk 0:02:57.9]} 11. g4
{[%clk 0:02:58.4]} 11... Nb6 {[%clk 0:02:58]} 12. Qf2 {[%clk 0:02:58.9]} 12...
Nfd7 {[%clk 0:02:56.8]} 13. h4 {[%clk 0:02:46.4]} 13... Qc7 {[%clk 0:02:52.1]}
14. Kb1 {[%clk 0:02:43]} 14... O-O {[%clk 0:02:46.9]} 15. g5 {[%clk 0:02:22.5]}
15... Nc4 {[%clk 0:02:28.1]} 16. Nd5 {[%clk 0:02:06.6]} 16... Bxd5 {[%clk
0:02:23.9]} 17. Rxd5 {[%clk 0:02:07.5]} 17... Ndb6 {[%clk 0:02:11.9]} 18. Rd1
{[%clk 0:01:59.5]} 18... Na4 {[%clk 0:02:09.8]} 19. Bc1 {[%clk 0:01:54.1]} 19...
Rfc8 {[%clk 0:01:50.1]} 20. Bd3 {[%clk 0:01:48]} 20... a5 {[%clk 0:01:47.5]} 21.
h5 {[%clk 0:01:44.8]} 21... Naxb2 {[%clk 0:01:01.2]} 22. Bxb2 {[%clk 0:00:57.7]}
22... Nxb2 {[%clk 0:01:00.4]} 23. Kxb2 {[%clk 0:00:57.7]} 23... Qc3+ {[%clk
0:01:00.9]} 24. Kb1 {[%clk 0:00:57.2]} 24... a4 {[%clk 0:01:01.4]} 25. Qd2
{[%clk 0:00:52.7]} 25... axb3 {[%clk 0:00:54.4]} 26. cxb3 {[%clk 0:00:53.6]}
26... b4 {[%clk 0:00:40.7]} 27. g6 {[%clk 0:00:44]} 27... Bg5 {[%clk 0:00:23.3]}
28. Qxc3 {[%clk 0:00:24.3]} 28... Rxc3 {[%clk 0:00:17.1]} 29. Bc4 {[%clk
0:00:22.1]} 29... Rxf3 {[%clk 0:00:14.2]} 30. Bxf7+ {[%clk 0:00:16.5]} 30... Kh8
{[%clk 0:00:13.4]} 31. Bd5 {[%clk 0:00:05.2]} 31... Rf2 {[%clk 0:00:13.3]} 32.
Bxa8 {[%clk 0:00:04.7]} 32... Be3 {[%clk 0:00:12.6]} 33. Rhf1 {[%clk 0:00:03.1]}
33... Rf4 {[%clk 0:00:06.2]} 34. Rxf4 {[%clk 0:00:03.3]} 34... exf4 {[%clk
0:00:06]} 35. Rf1 {[%clk 0:00:03.6]} 35... Kg8 {[%clk 0:00:05.9]} 36. Bd5+
{[%clk 0:00:03.1]} 36... Kh8 {[%clk 0:00:04.9]} 37. Kc2 {[%clk 0:00:03.4]} 37...
hxg6 {[%clk 0:00:05.3]} 38. hxg6 {[%clk 0:00:03.4]} 38... f3 {[%clk 0:00:04.5]}
39. Rxf3 {[%clk 0:00:03]} 39... Bh6 {[%clk 0:00:05.1]} 40. Rf8# {[%clk 0:00:03]}
1-0

[Event "*** Titled Tuesday Blitz"]
[Site "Chess.com"]
[Date "2020.05.12"]
[Round "4"]
[White "StephenDedalus83"]
[Black "Azerichess"]
[Result "1/2-1/2"]
[WhiteElo "2730"]
[BlackElo "3038"]
[TimeControl "180+1"]
[EndTime "10:38:57 PDT"]
[Termination "Game drawn by repetition"]

1. e4 {[%clk 0:03:00.9]} 1... c6 {[%clk 0:02:59]} 2. d4 {[%clk 0:02:59]} 2... d5
{[%clk 0:02:59.1]} 3. e5 {[%clk 0:02:58.6]} 3... Bf5 {[%clk 0:02:58.7]} 4. c3
{[%clk 0:02:58.4]} 4... e6 {[%clk 0:02:57.8]} 5. Be3 {[%clk 0:02:58.4]} 5... Nd7
{[%clk 0:02:57.9]} 6. Nd2 {[%clk 0:02:58.2]} 6... Ne7 {[%clk 0:02:53.8]} 7. f4
{[%clk 0:02:57.4]} 7... h6 {[%clk 0:02:52.2]} 8. Ngf3 {[%clk 0:02:56.4]} 8...
Rc8 {[%clk 0:02:52.2]} 9. Be2 {[%clk 0:02:54.9]} 9... a6 {[%clk 0:02:52.6]} 10.
b4 {[%clk 0:02:49]} 10... a5 {[%clk 0:02:28.3]} 11. a3 {[%clk 0:02:47.9]} 11...
b5 {[%clk 0:02:25.3]} 12. O-O {[%clk 0:02:45]} 12... a4 {[%clk 0:02:25.1]} 13.
h3 {[%clk 0:02:37.4]} 13... Nb6 {[%clk 0:02:22.7]} 14. g4 {[%clk 0:02:36.3]}
14... Bh7 {[%clk 0:02:22.9]} 15. Bf2 {[%clk 0:02:10.9]} 15... Nc4 {[%clk
0:02:18.8]} 16. Qe1 {[%clk 0:02:08.8]} 16... Kd7 {[%clk 0:02:17.9]} 17. Bg3
{[%clk 0:02:00.9]} 17... Kc7 {[%clk 0:02:04.6]} 18. Rf2 {[%clk 0:01:58.7]} 18...
Kb7 {[%clk 0:02:03.8]} 19. Nf1 {[%clk 0:01:58.3]} 19... Qd7 {[%clk 0:01:56.5]}
20. Qd1 {[%clk 0:01:57.1]} 20... Rd8 {[%clk 0:01:40.5]} 21. Bd3 {[%clk
0:01:56.8]} 21... g6 {[%clk 0:01:37.8]} 22. Bh4 {[%clk 0:01:55.1]} 22... g5
{[%clk 0:01:25.9]} 23. fxg5 {[%clk 0:01:54.1]} 23... hxg5 {[%clk 0:01:22.7]} 24.
Bxg5 {[%clk 0:01:53.3]} 24... Bxd3 {[%clk 0:01:22.2]} 25. Qxd3 {[%clk 0:01:53]}
25... Rxh3 {[%clk 0:01:22.5]} 26. Kg2 {[%clk 0:01:53]} 26... Rh8 {[%clk
0:01:22.2]} 27. Ng3 {[%clk 0:01:51.1]} 27... Rc8 {[%clk 0:01:17.2]} 28. Nh5
{[%clk 0:01:48]} 28... Ng6 {[%clk 0:01:15.5]} 29. Nf6 {[%clk 0:01:47.9]} 29...
Qc7 {[%clk 0:01:14.3]} 30. Nd2 {[%clk 0:01:47.1]} 30... Bh6 {[%clk 0:01:05.7]}
31. Bxh6 {[%clk 0:01:45.5]} 31... Rxh6 {[%clk 0:01:06.6]} 32. Nxc4 {[%clk
0:01:40]} 32... bxc4 {[%clk 0:01:06.8]} 33. Qe3 {[%clk 0:01:38.2]} 33... Rch8
{[%clk 0:01:05.8]} 34. Nh5 {[%clk 0:01:38.1]} 34... Nh4+ {[%clk 0:00:58]} 35.
Kf1 {[%clk 0:01:33.3]} 35... Rg6 {[%clk 0:00:28.7]} 36. Qf4 {[%clk 0:01:32.4]}
36... Rh7 {[%clk 0:00:23.8]} 37. Ke2 {[%clk 0:01:31.3]} 37... Qe7 {[%clk
0:00:21]} 38. Raf1 {[%clk 0:01:29.8]} 38... Kb6 {[%clk 0:00:16.9]} 39. Nf6
{[%clk 0:01:24.8]} 39... Rh8 {[%clk 0:00:15.7]} 40. Rh2 {[%clk 0:01:20.8]} 40...
Rgh6 {[%clk 0:00:11.5]} 41. g5 {[%clk 0:01:18]} 41... Ng6 {[%clk 0:00:10.8]} 42.
gxh6 {[%clk 0:01:17.5]} 42... Nxf4+ {[%clk 0:00:10.9]} 43. Rxf4 {[%clk
0:01:17.5]} 43... c5 {[%clk 0:00:03.2]} 44. bxc5+ {[%clk 0:01:12.7]} 44... Ka6
{[%clk 0:00:02.3]} 45. h7 {[%clk 0:01:00]} 45... Qb7 {[%clk 0:00:03.2]} 46. Rh3
{[%clk 0:00:58.2]} 46... Qb2+ {[%clk 0:00:03.2]} 47. Kf1 {[%clk 0:00:58]} 47...
Qb1+ {[%clk 0:00:04.1]} 48. Kg2 {[%clk 0:00:57.4]} 48... Qb2+ {[%clk 0:00:04.1]}
49. Kh1 {[%clk 0:00:56.9]} 49... Qxa3 {[%clk 0:00:04]} 50. Rg4 {[%clk
0:00:56.2]} 50... Qc1+ {[%clk 0:00:03.9]} 51. Rg1 {[%clk 0:00:55.8]} 51... Qc2
{[%clk 0:00:04.4]} 52. Rg8 {[%clk 0:00:55.7]} 52... Qb1+ {[%clk 0:00:04.9]} 53.
Kh2 {[%clk 0:00:54.9]} 53... Qc2+ {[%clk 0:00:05.3]} 54. Kh1 {[%clk 0:00:54.7]}
54... Qb1+ {[%clk 0:00:05.8]} 55. Kh2 {[%clk 0:00:54.5]} 55... Qc2+ {[%clk
0:00:06.3]} 56. Kh1 {[%clk 0:00:54.5]} 1/2-1/2

[Event "*** Titled Tuesday Blitz"]
[Site "Chess.com"]
[Date "2020.05.12"]
[Round "4"]
[White "gusmaster2262"]
[Black "Haykoooo0o"]
[Result "0-1"]
[WhiteElo "2301"]
[BlackElo "2476"]
[TimeControl "180+1"]
[EndTime "10:38:57 PDT"]
[Termination "Haykoooo0o won on time"]

1. d4 {[%clk 0:03:00.9]} 1... Nf6 {[%clk 0:02:58.1]} 2. Nf3 {[%clk 0:03:00.6]}
2... e6 {[%clk 0:02:58.3]} 3. c3 {[%clk 0:03:00.6]} 3... d5 {[%clk 0:02:58.5]}
4. Bf4 {[%clk 0:02:58.9]} 4... c5 {[%clk 0:02:58.9]} 5. e3 {[%clk 0:02:58.5]}
5... Nc6 {[%clk 0:02:58.2]} 6. Nbd2 {[%clk 0:02:54.6]} 6... Bd6 {[%clk
0:02:52.8]} 7. Bg5 {[%clk 0:02:51.6]} 7... O-O {[%clk 0:02:46]} 8. Bb5 {[%clk
0:02:44.4]} 8... Bd7 {[%clk 0:02:44.9]} 9. O-O {[%clk 0:02:39.9]} 9... Rc8
{[%clk 0:02:44.4]} 10. a3 {[%clk 0:02:21.6]} 10... Be7 {[%clk 0:02:40.1]} 11.
Bd3 {[%clk 0:02:18.3]} 11... Re8 {[%clk 0:02:38.6]} 12. h3 {[%clk 0:02:13.9]}
12... h6 {[%clk 0:02:34.9]} 13. Bf4 {[%clk 0:02:11.5]} 13... Bf8 {[%clk
0:02:17.6]} 14. Ne5 {[%clk 0:02:08.3]} 14... Nxe5 {[%clk 0:02:13.9]} 15. dxe5
{[%clk 0:02:06]} 15... Nh7 {[%clk 0:02:07.4]} 16. Qh5 {[%clk 0:01:52.2]} 16...
Qe7 {[%clk 0:02:03.7]} 17. e4 {[%clk 0:01:40.7]} 17... d4 {[%clk 0:01:59.3]} 18.
Nc4 {[%clk 0:01:38.5]} 18... Bb5 {[%clk 0:01:56]} 19. Qe2 {[%clk 0:01:27.7]}
19... Bxc4 {[%clk 0:01:55.7]} 20. Bxc4 {[%clk 0:01:27.8]} 20... Red8 {[%clk
0:01:55.8]} 21. Rfd1 {[%clk 0:01:21.9]} 21... a6 {[%clk 0:01:51.2]} 22. a4
{[%clk 0:01:20.4]} 22... Qe8 {[%clk 0:01:48.3]} 23. a5 {[%clk 0:01:15.6]} 23...
Be7 {[%clk 0:01:47.7]} 24. Qg4 {[%clk 0:01:13.6]} 24... Bg5 {[%clk 0:01:47.6]}
25. Bg3 {[%clk 0:01:03.9]} 25... Nf8 {[%clk 0:01:36]} 26. h4 {[%clk 0:01:02.1]}
26... Be7 {[%clk 0:01:33.9]} 27. Bf4 {[%clk 0:01:00.8]} 27... Kh7 {[%clk
0:01:32]} 28. h5 {[%clk 0:00:55.4]} 28... Rd7 {[%clk 0:01:25.9]} 29. Qf3 {[%clk
0:00:52.8]} 29... Rcd8 {[%clk 0:01:25.1]} 30. Bd2 {[%clk 0:00:48.9]} 30... Bg5
{[%clk 0:01:24.3]} 31. Bxg5 {[%clk 0:00:46.9]} 31... hxg5 {[%clk 0:01:25.2]} 32.
Qg3 {[%clk 0:00:39.9]} 32... Qe7 {[%clk 0:01:25.3]} 33. Rd3 {[%clk 0:00:37.4]}
33... f6 {[%clk 0:01:18.6]} 34. Rf3 {[%clk 0:00:34.1]} 34... Kh6 {[%clk
0:01:05]} 35. Re1 {[%clk 0:00:27.7]} 35... Nh7 {[%clk 0:01:04.9]} 36. Rd3 {[%clk
0:00:21.4]} 36... Qf7 {[%clk 0:01:03]} 37. f4 {[%clk 0:00:19.4]} 37... gxf4
{[%clk 0:00:56.9]} 38. Qxf4+ {[%clk 0:00:17.8]} 38... Ng5 {[%clk 0:00:54.3]} 39.
Rg3 {[%clk 0:00:16.3]} 39... dxc3 {[%clk 0:00:45.5]} 40. bxc3 {[%clk 0:00:15.1]}
40... Qe7 {[%clk 0:00:43.9]} 41. Rf1 {[%clk 0:00:10.9]} 41... Rf8 {[%clk
0:00:40.1]} 42. Rxg5 {[%clk 0:00:07.3]} 42... fxg5 {[%clk 0:00:39]} 43. Qxf8
{[%clk 0:00:07]} 43... Qxf8 {[%clk 0:00:39.3]} 44. Rxf8 {[%clk 0:00:05.5]} 44...
Kxh5 {[%clk 0:00:39.7]} 45. Be2+ {[%clk 0:00:04.4]} 45... Kh4 {[%clk 0:00:39.6]}
46. Rh8+ {[%clk 0:00:02.7]} 46... Kg3 {[%clk 0:00:39.5]} 0-1

[Event "*** Titled Tuesday Blitz"]
[Site "Chess.com"]
[Date "2020.05.12"]
[Round "4"]
[White "elisak43"]
[Black "DanielDardha2005"]
[Result "0-1"]
[WhiteElo "2424"]
[BlackElo "2615"]
[TimeControl "180+1"]
[EndTime "10:38:58 PDT"]
[Termination "DanielDardha2005 won on time"]

1. e4 {[%clk 0:03:00.9]} 1... c5 {[%clk 0:02:53.8]} 2. g3 {[%clk 0:02:59.7]}
2... d5 {[%clk 0:02:53]} 3. Nc3 {[%clk 0:02:58.5]} 3... Nf6 {[%clk 0:02:45.4]}
4. exd5 {[%clk 0:02:58.1]} 4... Nxd5 {[%clk 0:02:46.3]} 5. Bg2 {[%clk
0:02:58.8]} 5... Nc7 {[%clk 0:02:44.5]} 6. Nge2 {[%clk 0:02:57.6]} 6... g6
{[%clk 0:02:42.8]} 7. d4 {[%clk 0:02:47.8]} 7... cxd4 {[%clk 0:02:43.7]} 8. Qxd4
{[%clk 0:02:48.7]} 8... Qxd4 {[%clk 0:02:43.1]} 9. Nxd4 {[%clk 0:02:49.6]} 9...
Bg7 {[%clk 0:02:42.3]} 10. Ndb5 {[%clk 0:02:50]} 10... Nba6 {[%clk 0:02:40.4]}
11. Nxc7+ {[%clk 0:02:40.2]} 11... Nxc7 {[%clk 0:02:41.3]} 12. Bf4 {[%clk
0:02:32.5]} 12... e5 {[%clk 0:02:35.4]} 13. Be3 {[%clk 0:02:29.1]} 13... O-O
{[%clk 0:02:34.9]} 14. O-O-O {[%clk 0:02:28.3]} 14... Bg4 {[%clk 0:02:30.3]} 15.
Rd2 {[%clk 0:02:22.1]} 15... Rfb8 {[%clk 0:02:17.8]} 16. h3 {[%clk 0:02:12.2]}
16... Be6 {[%clk 0:02:16.5]} 17. Nd5 {[%clk 0:02:05.9]} 17... Nxd5 {[%clk
0:02:14.2]} 18. Bxd5 {[%clk 0:02:06.8]} 18... Bxd5 {[%clk 0:02:15.1]} 19. Rxd5
{[%clk 0:02:06.9]} 19... Rd8 {[%clk 0:02:12.5]} 20. Rhd1 {[%clk 0:02:06.7]}
20... Rxd5 {[%clk 0:02:10.5]} 21. Rxd5 {[%clk 0:02:07.6]} 21... b6 {[%clk
0:02:03.4]} 22. c4 {[%clk 0:02:00.8]} 22... Rc8 {[%clk 0:02:00.3]} 23. Kd2
{[%clk 0:02:01.2]} 23... Bf6 {[%clk 0:01:56.7]} 24. Kd3 {[%clk 0:01:57.7]} 24...
Rc7 {[%clk 0:01:54.8]} 25. Bh6 {[%clk 0:01:51.3]} 25... e4+ {[%clk 0:01:51.9]}
26. Kxe4 {[%clk 0:01:44.9]} 26... Rxc4+ {[%clk 0:01:51.6]} 27. Kd3 {[%clk
0:01:45.4]} 27... Rc8 {[%clk 0:01:45]} 28. b3 {[%clk 0:01:42.1]} 28... Rc7
{[%clk 0:01:21.1]} 29. Bf4 {[%clk 0:01:36.1]} 29... Re7 {[%clk 0:01:15.6]} 30.
Rd8+ {[%clk 0:01:09.3]} 30... Kg7 {[%clk 0:01:14.3]} 31. Bd6 {[%clk 0:01:09.6]}
31... Rb7 {[%clk 0:01:08.4]} 32. Bf8+ {[%clk 0:01:00.6]} 32... Kg8 {[%clk
0:01:07.8]} 33. Be7+ {[%clk 0:00:30.6]} 33... Kg7 {[%clk 0:01:07.4]} 34. Bxf6+
{[%clk 0:00:19.2]} 34... Kxf6 {[%clk 0:01:08.3]} 35. Kc4 {[%clk 0:00:20.1]}
35... Rc7+ {[%clk 0:01:07.5]} 36. Kd3 {[%clk 0:00:17.9]} 36... Ke7 {[%clk
0:01:05.4]} 37. Rd4 {[%clk 0:00:17.9]} 37... h5 {[%clk 0:01:05.4]} 38. Re4+
{[%clk 0:00:17.9]} 38... Kd6 {[%clk 0:01:05.4]} 39. Rd4+ {[%clk 0:00:18.4]}
39... Ke6 {[%clk 0:01:05.7]} 40. Re4+ {[%clk 0:00:18.2]} 40... Kf6 {[%clk
0:01:00.9]} 41. Rf4+ {[%clk 0:00:18]} 41... Kg7 {[%clk 0:01:01.4]} 42. h4 {[%clk
0:00:18]} 42... f6 {[%clk 0:00:59.5]} 43. Rc4 {[%clk 0:00:17.6]} 43... Rd7+
{[%clk 0:00:58.7]} 44. Rd4 {[%clk 0:00:18]} 44... Rc7 {[%clk 0:00:59]} 45. Rc4
{[%clk 0:00:18.3]} 45... Rf7 {[%clk 0:00:49.2]} 46. Rc6 {[%clk 0:00:16.3]} 46...
g5 {[%clk 0:00:47.7]} 47. Ke4 {[%clk 0:00:14.7]} 47... Re7+ {[%clk 0:00:46.5]}
48. Kf3 {[%clk 0:00:11.2]} 48... g4+ {[%clk 0:00:45]} 49. Kf4 {[%clk 0:00:09.6]}
49... Re2 {[%clk 0:00:44.7]} 50. f3 {[%clk 0:00:02.8]} 50... Rf2 {[%clk
0:00:44.4]} 51. Rc3 {[%clk 0:00:03.2]} 51... gxf3 {[%clk 0:00:43.3]} 0-1

[Event "*** Titled Tuesday Blitz"]
[Site "Chess.com"]
[Date "2020.05.12"]
[Round "4"]
[White "kleinebeer98"]
[Black "2nd_life"]
[Result "1-0"]
[WhiteElo "2661"]
[BlackElo "2406"]
[TimeControl "180+1"]
[EndTime "10:39:00 PDT"]
[Termination "kleinebeer98 won on time"]

1. e4 {[%clk 0:03:00.9]} 1... e5 {[%clk 0:02:59.6]} 2. Nf3 {[%clk 0:02:59.4]}
2... Nc6 {[%clk 0:03:00]} 3. Nc3 {[%clk 0:02:56.3]} 3... Nf6 {[%clk 0:02:59.7]}
4. a3 {[%clk 0:02:56.8]} 4... d5 {[%clk 0:02:55.4]} 5. exd5 {[%clk 0:02:57.7]}
5... Nxd5 {[%clk 0:02:55.2]} 6. Nxe5 {[%clk 0:02:58.3]} 6... Nxe5 {[%clk
0:02:23.4]} 7. Qe2 {[%clk 0:02:58.2]} 7... f6 {[%clk 0:01:59.9]} 8. d4 {[%clk
0:02:57.1]} 8... Nxc3 {[%clk 0:01:53.9]} 9. bxc3 {[%clk 0:02:58]} 9... Bd6
{[%clk 0:01:51.4]} 10. dxe5 {[%clk 0:02:56.6]} 10... fxe5 {[%clk 0:01:45.2]} 11.
Qh5+ {[%clk 0:02:54.7]} 11... g6 {[%clk 0:01:42.6]} 12. Qh6 {[%clk 0:02:54]}
12... Qf6 {[%clk 0:01:22.7]} 13. Bg5 {[%clk 0:02:53]} 13... Qf7 {[%clk
0:01:15.7]} 14. Bd3 {[%clk 0:02:53.1]} 14... Bf5 {[%clk 0:01:03.3]} 15. Rb1
{[%clk 0:02:46.7]} 15... Bxd3 {[%clk 0:00:41.7]} 16. cxd3 {[%clk 0:02:47.6]}
16... b6 {[%clk 0:00:41.8]} 17. O-O {[%clk 0:02:37.3]} 17... Kd7 {[%clk
0:00:25.7]} 18. d4 {[%clk 0:02:29]} 18... exd4 {[%clk 0:00:20.8]} 19. cxd4
{[%clk 0:02:29.9]} 19... Rhe8 {[%clk 0:00:20.5]} 20. Qh3+ {[%clk 0:02:27.7]}
20... Kc6 {[%clk 0:00:19.6]} 21. a4 {[%clk 0:02:20.3]} 21... a5 {[%clk
0:00:18.3]} 22. Be3 {[%clk 0:02:05.6]} 22... Kb7 {[%clk 0:00:16.7]} 23. Rfd1
{[%clk 0:02:00.9]} 23... h5 {[%clk 0:00:15.5]} 24. d5 {[%clk 0:01:59.8]} 24...
Qf5 {[%clk 0:00:15.6]} 25. Qh4 {[%clk 0:01:58.6]} 25... Re4 {[%clk 0:00:14.3]}
26. Qg5 {[%clk 0:01:44.1]} 26... Qxg5 {[%clk 0:00:14.4]} 27. Bxg5 {[%clk
0:01:45]} 27... Rxa4 {[%clk 0:00:14.7]} 28. Be3 {[%clk 0:01:36.3]} 28... Rb4
{[%clk 0:00:13.8]} 29. Ra1 {[%clk 0:01:33.8]} 29... a4 {[%clk 0:00:13.1]} 30. g3
{[%clk 0:01:12.1]} 30... a3 {[%clk 0:00:12.6]} 31. Ra2 {[%clk 0:01:12.2]} 31...
Rb2 {[%clk 0:00:12.1]} 32. Rxb2 {[%clk 0:01:08.3]} 32... axb2 {[%clk 0:00:12.1]}
33. Bd4 {[%clk 0:01:09.2]} 33... Ra2 {[%clk 0:00:06.3]} 34. Rb1 {[%clk
0:01:09.2]} 34... Ba3 {[%clk 0:00:05.7]} 35. f3 {[%clk 0:01:08.8]} 35... Ka6
{[%clk 0:00:05.8]} 36. g4 {[%clk 0:01:08.9]} 36... Kb5 {[%clk 0:00:05.9]} 37.
gxh5 {[%clk 0:01:08.9]} 37... gxh5 {[%clk 0:00:06.4]} 38. Kf2 {[%clk 0:01:07]}
38... Kc4 {[%clk 0:00:06.7]} 39. Ke3 {[%clk 0:01:06.8]} 39... Kb3 {[%clk
0:00:06.4]} 40. Kd3 {[%clk 0:01:05.6]} 40... Ra1 {[%clk 0:00:06.6]} 41. Rxa1
{[%clk 0:01:05.4]} 41... bxa1=Q {[%clk 0:00:05.9]} 42. Bxa1 {[%clk 0:01:06.3]}
42... Bd6 {[%clk 0:00:05.9]} 43. h3 {[%clk 0:01:04.1]} 43... b5 {[%clk
0:00:06.2]} 44. Ke4 {[%clk 0:00:49.4]} 44... Kc4 {[%clk 0:00:06.3]} 45. f4
{[%clk 0:00:48.1]} 45... b4 {[%clk 0:00:06.5]} 46. f5 {[%clk 0:00:48.5]} 46...
b3 {[%clk 0:00:05.9]} 47. f6 {[%clk 0:00:48.2]} 47... Bf8 {[%clk 0:00:04]} 48.
Ke5 {[%clk 0:00:43.3]} 48... Kd3 {[%clk 0:00:01.9]} 49. Ke6 {[%clk 0:00:43]}
49... Kc2 {[%clk 0:00:01.6]} 50. Kd7 {[%clk 0:00:40.2]} 50... Bd6 {[%clk
0:00:01.3]} 51. f7 {[%clk 0:00:38.4]} 1-0

[Event "*** Titled Tuesday Blitz"]
[Site "Chess.com"]
[Date "2020.05.12"]
[Round "4"]
[White "GMKrikor"]
[Black "deep306"]
[Result "0-1"]
[WhiteElo "2809"]
[BlackElo "2575"]
[TimeControl "180+1"]
[EndTime "10:39:02 PDT"]
[Termination "deep306 won by checkmate"]

1. Nf3 {[%clk 0:03:00.9]} 1... Nf6 {[%clk 0:02:59.6]} 2. c4 {[%clk 0:03:00.5]}
2... e6 {[%clk 0:02:59.5]} 3. Nc3 {[%clk 0:03:00.3]} 3... b6 {[%clk 0:02:59.2]}
4. g3 {[%clk 0:02:56.9]} 4... Bb7 {[%clk 0:02:58.9]} 5. Bg2 {[%clk 0:02:57.4]}
5... Be7 {[%clk 0:02:58.3]} 6. O-O {[%clk 0:02:57.2]} 6... O-O {[%clk
0:02:58.7]} 7. Re1 {[%clk 0:02:54.2]} 7... Ne4 {[%clk 0:02:58.3]} 8. Nxe4 {[%clk
0:02:53.3]} 8... Bxe4 {[%clk 0:02:58.2]} 9. d3 {[%clk 0:02:54.2]} 9... Bb7
{[%clk 0:02:58.2]} 10. e4 {[%clk 0:02:54.2]} 10... c5 {[%clk 0:02:58.4]} 11. d4
{[%clk 0:02:53.8]} 11... cxd4 {[%clk 0:02:58.1]} 12. Nxd4 {[%clk 0:02:54.7]}
12... Nc6 {[%clk 0:02:58.1]} 13. Bf4 {[%clk 0:02:36.9]} 13... Nxd4 {[%clk
0:02:49.8]} 14. Qxd4 {[%clk 0:02:36.5]} 14... Qc8 {[%clk 0:02:49.5]} 15. Rad1
{[%clk 0:02:30.4]} 15... Rd8 {[%clk 0:02:48.4]} 16. b3 {[%clk 0:02:03.9]} 16...
Bc6 {[%clk 0:02:44.8]} 17. Bd6 {[%clk 0:01:59.6]} 17... Bxd6 {[%clk 0:02:41.1]}
18. Qxd6 {[%clk 0:02:00.5]} 18... Qb8 {[%clk 0:02:40.3]} 19. f4 {[%clk
0:01:36.5]} 19... Qxd6 {[%clk 0:02:39.7]} 20. Rxd6 {[%clk 0:01:37.4]} 20... Kf8
{[%clk 0:02:40]} 21. Red1 {[%clk 0:01:37.2]} 21... Ke7 {[%clk 0:02:39.1]} 22.
Kf2 {[%clk 0:01:37.2]} 22... Rac8 {[%clk 0:02:38.5]} 23. a4 {[%clk 0:01:22.9]}
23... Bb7 {[%clk 0:02:10.6]} 24. Bf3 {[%clk 0:01:15.5]} 24... f6 {[%clk
0:02:07.7]} 25. Ke3 {[%clk 0:01:13.8]} 25... Bd5 {[%clk 0:01:38]} 26. e5 {[%clk
0:00:47.8]} 26... Bxf3 {[%clk 0:01:37.5]} 27. exf6+ {[%clk 0:00:32.4]} 27...
gxf6 {[%clk 0:01:36.9]} 28. Kxf3 {[%clk 0:00:33.3]} 28... Rc5 {[%clk 0:01:18.4]}
29. Ke4 {[%clk 0:00:27.1]} 29... Rh5 {[%clk 0:01:10.4]} 30. R6d2 {[%clk
0:00:21.1]} 30... d6 {[%clk 0:00:50.6]} 31. Kf3 {[%clk 0:00:18.5]} 31... a5
{[%clk 0:00:49.7]} 32. Re2 {[%clk 0:00:16.9]} 32... Kf7 {[%clk 0:00:47.4]} 33.
Rde1 {[%clk 0:00:16.9]} 33... Re8 {[%clk 0:00:47.4]} 34. Rd1 {[%clk 0:00:16]}
34... Rd8 {[%clk 0:00:46.9]} 35. Rdd2 {[%clk 0:00:16.6]} 35... Rc5 {[%clk
0:00:44.4]} 36. Re4 {[%clk 0:00:15.8]} 36... f5 {[%clk 0:00:42.9]} 37. Red4
{[%clk 0:00:16.2]} 37... Ke7 {[%clk 0:00:42.5]} 38. R4d3 {[%clk 0:00:16.3]}
38... Rc6 {[%clk 0:00:42.4]} 39. h3 {[%clk 0:00:16.2]} 39... Rf8 {[%clk
0:00:42.1]} 40. g4 {[%clk 0:00:15.6]} 40... Rf7 {[%clk 0:00:42.1]} 41. Kg3
{[%clk 0:00:15.7]} 41... Rg7 {[%clk 0:00:41.9]} 42. Rf3 {[%clk 0:00:14.6]} 42...
Rc8 {[%clk 0:00:37.2]} 43. Re3 {[%clk 0:00:10.5]} 43... fxg4 {[%clk 0:00:36.4]}
44. hxg4 {[%clk 0:00:10.5]} 44... Rcg8 {[%clk 0:00:36.5]} 45. g5 {[%clk
0:00:10.2]} 45... h6 {[%clk 0:00:36.5]} 46. Red3 {[%clk 0:00:07.4]} 46... hxg5
{[%clk 0:00:36.2]} 47. Rxd6 {[%clk 0:00:07.2]} 47... gxf4+ {[%clk 0:00:36.4]}
48. Kxf4 {[%clk 0:00:08]} 48... Rg4+ {[%clk 0:00:36.2]} 49. Kf3 {[%clk
0:00:08.6]} 49... Rg3+ {[%clk 0:00:36.6]} 50. Kf4 {[%clk 0:00:08.9]} 50... R8g4+
{[%clk 0:00:35.7]} 51. Ke5 {[%clk 0:00:09.4]} 51... Re3# {[%clk 0:00:34.7]} 0-1